[Event "Titled Tuesday Blitz August 15 Late 2023"]
[White "Drygalov, Sergey"]
[Black "Loay, Sameer"]
[WhiteFideId "24171743"]
[BlackFideId "8104239"]
[WhiteElo "2957"]
[BlackElo "2565"]
[Result "1-0"]
[Round "4"]
[TimeControl "180+1"]
[Date "2023.08.15"]
[WhiteClock "0:00:18"]
[BlackClock "0:00:06"]
[Board "31"]

1. d4 {[%clk 0:02:59]}  Nf6 {[%clk 0:03:00]} 2. c4 {[%clk 0:03:00]}  g6 {[%clk 0:03:00]} 3. Nc3 {[%clk 0:03:00]}  Bg7 {[%clk 0:03:01]} 4. e4 {[%clk 0:03:00]}  O-O {[%clk 0:03:01]} 5. Nf3 {[%clk 0:03:01]}  d6 {[%clk 0:03:02]} 6. Be2 {[%clk 0:03:02]}  Na6 {[%clk 0:03:02]} 7. O-O {[%clk 0:03:01]}  e5 {[%clk 0:03:03]} 8. Be3 {[%clk 0:03:02]}  Ng4 {[%clk 0:03:04]} 9. Bg5 {[%clk 0:03:02]}  Qe8 {[%clk 0:03:04]} 10. Re1 {[%clk 0:03:00]}  h6 {[%clk 0:02:58]} 11. Bh4 {[%clk 0:02:55]}  exd4 {[%clk 0:02:19]} 12. Nxd4 {[%clk 0:02:56]}  Ne5 {[%clk 0:02:18]} 13. Nd5 {[%clk 0:02:53]}  g5 {[%clk 0:02:01]} 14. Bg3 {[%clk 0:02:53]}  c6 {[%clk 0:02:01]} 15. Ne3 {[%clk 0:02:51]}  Nc5 {[%clk 0:02:01]} 16. f3 {[%clk 0:02:49]}  Be6 {[%clk 0:01:02]} 17. b4 {[%clk 0:02:44]}  Na6 {[%clk 0:01:00]} 18. a3 {[%clk 0:02:42]}  Rd8 {[%clk 0:00:55]} 19. Rc1 {[%clk 0:02:41]}  Ng6 {[%clk 0:00:48]} 20. Ndf5 {[%clk 0:02:38]}  Nf4 {[%clk 0:00:44]} 21. Nxd6 {[%clk 0:02:30]}  Qe7 {[%clk 0:00:43]} 22. c5 {[%clk 0:02:28]}  Be5 {[%clk 0:00:43]} 23. Qc2 {[%clk 0:02:14]}  Bxd6 {[%clk 0:00:32]} 24. cxd6 {[%clk 0:02:14]}  Rxd6 {[%clk 0:00:30]} 25. Bf1 {[%clk 0:02:06]}  Rfd8 {[%clk 0:00:28]} 26. Rcd1 {[%clk 0:02:01]}  Nc7 {[%clk 0:00:24]} 27. Rxd6 {[%clk 0:01:53]}  Rxd6 {[%clk 0:00:24]} 28. Qc5 {[%clk 0:01:40]}  b6 {[%clk 0:00:19]} 29. Qe5 {[%clk 0:01:34]}  f6 {[%clk 0:00:13]} 30. Qb2 {[%clk 0:01:31]}  Qd7 {[%clk 0:00:12]} 31. Qxf6 {[%clk 0:01:25]}  Qg7 {[%clk 0:00:12]} 32. Qxg7+ {[%clk 0:01:21]}  Kxg7 {[%clk 0:00:13]} 33. h4 {[%clk 0:01:17]}  Rd2 {[%clk 0:00:12]} 34. hxg5 {[%clk 0:01:17]}  hxg5 {[%clk 0:00:13]} 35. Rc1 {[%clk 0:01:17]}  Bd7 {[%clk 0:00:12]} 36. Nc4 {[%clk 0:01:14]}  Ra2 {[%clk 0:00:11]} 37. Ne5 {[%clk 0:01:14]}  Be8 {[%clk 0:00:11]} 38. Nxc6 {[%clk 0:01:14]}  Bxc6 {[%clk 0:00:11]} 39. Rxc6 {[%clk 0:01:14]}  Nce6 {[%clk 0:00:12]} 40. Bxf4 {[%clk 0:01:07]}  Nxf4 {[%clk 0:00:11]} 41. Rc7+ {[%clk 0:01:01]}  Kf6 {[%clk 0:00:12]} 42. Rxa7 {[%clk 0:00:57]}  Ke5 {[%clk 0:00:12]} 43. Rg7 {[%clk 0:00:31]}  Kd4 {[%clk 0:00:09]} 44. Rxg5 {[%clk 0:00:31]}  Ke3 {[%clk 0:00:10]} 45. Kh2 {[%clk 0:00:31]}  Rxa3 {[%clk 0:00:06]} 46. e5 {[%clk 0:00:30]}  Ra8 {[%clk 0:00:06]} 47. Kg3 {[%clk 0:00:22]}  Ne6 {[%clk 0:00:05]} 48. Rg6 {[%clk 0:00:20]}  Nd4 {[%clk 0:00:05]} 49. e6 {[%clk 0:00:18]}  Re8 {[%clk 0:00:05]} 50. Bc4 {[%clk 0:00:19]}  b5 {[%clk 0:00:05]} 51. Bd5 {[%clk 0:00:19]}  Nf5+ {[%clk 0:00:01]} 52. Kg4 {[%clk 0:00:19]}  Ne7 {[%clk 0:00:02]} 53. Rg5 {[%clk 0:00:19]}  Kd4 {[%clk 0:00:03]} 54. Be4 {[%clk 0:00:19]}  Rf8 {[%clk 0:00:02]} 55. Rxb5 {[%clk 0:00:18]}  Ke3 {[%clk 0:00:03]} 56. Rg5 {[%clk 0:00:18]}  Rf4+ {[%clk 0:00:03]} 57. Kg3 {[%clk 0:00:19]}  Rf6 {[%clk 0:00:04]} 58. b5 {[%clk 0:00:19]}  Rxe6 {[%clk 0:00:04]} 59. Kh2 {[%clk 0:00:18]}  Rb6 {[%clk 0:00:05]} 60. Kg1 {[%clk 0:00:18]}  Rd6 {[%clk 0:00:04]} 61. Re5 {[%clk 0:00:18]}  Rd1+ {[%clk 0:00:05]} 62. Kh2 {[%clk 0:00:18]}  Kf2 {[%clk 0:00:05]} 63. Rxe7 {[%clk 0:00:18]}  Rd6 {[%clk 0:00:06]} 64. Rh7 {[%clk 0:00:18]}  Ra6 {[%clk 0:00:06]} 65. bxa6 {[%clk 0:00:18]} 1-0


[Site "https://www.chess.com"]

[Event "Titled Tuesday Blitz August 15 Late 2023"]
[White "Kramnik, Vladimir"]
[Black "Schekachikhin, Maksim"]
[WhiteFideId "4101588"]
[BlackFideId "24177830"]
[WhiteElo "2944"]
[BlackElo "2568"]
[Result "1-0"]
[Round "4"]
[TimeControl "180+1"]
[Date "2023.08.15"]
[WhiteClock "0:00:02"]
[BlackClock "0:00:02"]
[Board "32"]

1. e4 {[%clk 0:03:00]}  c5 {[%clk 0:02:58]} 2. Nf3 {[%clk 0:03:00]}  Nc6 {[%clk 0:02:58]} 3. c3 {[%clk 0:02:59]}  d5 {[%clk 0:02:57]} 4. exd5 {[%clk 0:02:57]}  Qxd5 {[%clk 0:02:58]} 5. Na3 {[%clk 0:02:57]}  Nf6 {[%clk 0:02:51]} 6. Be2 {[%clk 0:02:57]}  e6 {[%clk 0:02:45]} 7. d4 {[%clk 0:02:54]}  Qd8 {[%clk 0:02:43]} 8. Nc2 {[%clk 0:02:44]}  Be7 {[%clk 0:02:35]} 9. O-O {[%clk 0:02:43]}  O-O {[%clk 0:02:35]} 10. dxc5 {[%clk 0:02:38]}  Bxc5 {[%clk 0:02:35]} 11. b4 {[%clk 0:02:35]}  Be7 {[%clk 0:02:22]} 12. a3 {[%clk 0:02:22]}  b6 {[%clk 0:02:03]} 13. Bb2 {[%clk 0:02:19]}  Bb7 {[%clk 0:02:03]} 14. c4 {[%clk 0:02:15]}  Rc8 {[%clk 0:02:01]} 15. Ne3 {[%clk 0:02:07]}  Qxd1 {[%clk 0:01:53]} 16. Rfxd1 {[%clk 0:02:05]}  Rfd8 {[%clk 0:01:54]} 17. Rxd8+ {[%clk 0:01:43]}  Rxd8 {[%clk 0:01:53]} 18. Rc1 {[%clk 0:01:43]}  Kf8 {[%clk 0:01:44]} 19. Kf1 {[%clk 0:01:42]}  a5 {[%clk 0:01:21]} 20. b5 {[%clk 0:01:34]}  Nb8 {[%clk 0:01:20]} 21. Ne5 {[%clk 0:01:23]}  Nfd7 {[%clk 0:01:10]} 22. Nd3 {[%clk 0:00:55]}  Nc5 {[%clk 0:01:06]} 23. Nxc5 {[%clk 0:00:55]}  Bxc5 {[%clk 0:01:07]} 24. Rd1 {[%clk 0:00:52]}  Rxd1+ {[%clk 0:01:05]} 25. Nxd1 {[%clk 0:00:45]}  Nd7 {[%clk 0:01:04]} 26. f3 {[%clk 0:00:43]}  g5 {[%clk 0:00:57]} 27. Bd3 {[%clk 0:00:43]}  f5 {[%clk 0:00:56]} 28. Ke2 {[%clk 0:00:41]}  Ke7 {[%clk 0:00:53]} 29. g4 {[%clk 0:00:39]}  fxg4 {[%clk 0:00:27]} 30. fxg4 {[%clk 0:00:39]}  h6 {[%clk 0:00:28]} 31. a4 {[%clk 0:00:32]}  Bd6 {[%clk 0:00:27]} 32. h3 {[%clk 0:00:23]}  Nc5 {[%clk 0:00:26]} 33. Bc2 {[%clk 0:00:22]}  Kf7 {[%clk 0:00:23]} 34. Nf2 {[%clk 0:00:21]}  Bg2 {[%clk 0:00:21]} 35. Bd4 {[%clk 0:00:20]}  e5 {[%clk 0:00:16]} 36. Be3 {[%clk 0:00:17]}  Be7 {[%clk 0:00:13]} 37. Nd3 {[%clk 0:00:13]}  Bxh3 {[%clk 0:00:06]} 38. Nxc5 {[%clk 0:00:09]}  bxc5 {[%clk 0:00:07]} 39. Kf3 {[%clk 0:00:06]}  Bf1 {[%clk 0:00:06]} 40. b6 {[%clk 0:00:05]}  Bd6 {[%clk 0:00:05]} 41. Be4 {[%clk 0:00:04]}  Bxc4 {[%clk 0:00:05]} 42. b7 {[%clk 0:00:04]}  Bb8 {[%clk 0:00:05]} 43. Bxc5 {[%clk 0:00:04]}  Ke6 {[%clk 0:00:05]} 44. Bf8 {[%clk 0:00:03]}  Bd5 {[%clk 0:00:05]} 45. Bxh6 {[%clk 0:00:02]}  Bb3 {[%clk 0:00:04]} 46. Bxg5 {[%clk 0:00:02]}  Bxa4 {[%clk 0:00:04]} 47. Bd2 {[%clk 0:00:02]}  Bb3 {[%clk 0:00:03]} 48. Bxa5 {[%clk 0:00:02]}  Bd1+ {[%clk 0:00:03]} 49. Kg3 {[%clk 0:00:02]}  Kf6 {[%clk 0:00:03]} 50. Kh4 {[%clk 0:00:01]}  Kg7 {[%clk 0:00:02]} 51. Bd2 {[%clk 0:00:02]}  Kf6 {[%clk 0:00:02]} 52. g5+ {[%clk 0:00:02]}  Kg7 {[%clk 0:00:03]} 53. g6 {[%clk 0:00:02]}  Kf6 {[%clk 0:00:03]} 54. Bg5+ {[%clk 0:00:02]}  Kg7 {[%clk 0:00:03]} 55. Be7 {[%clk 0:00:03]}  Bf3 {[%clk 0:00:02]} 56. Bxf3 {[%clk 0:00:02]} 1-0


[Site "https://www.chess.com"]

[Event "Titled Tuesday Blitz August 15 Late 2023"]
[White "Grigorjev, Iljya"]
[Black "Leenhouts, Koen"]
[WhiteFideId "24159565"]
[BlackFideId "1008439"]
[WhiteElo "2883"]
[BlackElo "2539"]
[Result "0-1"]
[Round "4"]
[TimeControl "180+1"]
[Date "2023.08.15"]
[WhiteClock "0:00:00"]
[BlackClock "0:00:17"]
[Board "35"]

1. e4 {[%clk 0:03:00]}  c5 {[%clk 0:02:53]} 2. Nf3 {[%clk 0:03:01]}  e6 {[%clk 0:02:53]} 3. d4 {[%clk 0:03:01]}  cxd4 {[%clk 0:02:54]} 4. Nxd4 {[%clk 0:03:02]}  Nc6 {[%clk 0:02:54]} 5. Nc3 {[%clk 0:03:03]}  Qc7 {[%clk 0:02:54]} 6. Be3 {[%clk 0:03:02]}  a6 {[%clk 0:02:54]} 7. Qf3 {[%clk 0:03:01]}  Nf6 {[%clk 0:02:50]} 8. O-O-O {[%clk 0:02:54]}  Ne5 {[%clk 0:02:48]} 9. Qg3 {[%clk 0:02:52]}  b5 {[%clk 0:02:48]} 10. Bf4 {[%clk 0:02:46]}  d6 {[%clk 0:02:45]} 11. Bxb5+ {[%clk 0:01:44]}  axb5 {[%clk 0:02:42]} 12. Ndxb5 {[%clk 0:01:45]}  Qa5 {[%clk 0:02:35]} 13. Rxd6 {[%clk 0:01:31]}  Nh5 {[%clk 0:02:27]} 14. Qg5 {[%clk 0:01:08]}  Nxf4 {[%clk 0:02:15]} 15. Qxe5 {[%clk 0:01:08]}  Ng6 {[%clk 0:01:54]} 16. Qc5 {[%clk 0:01:08]}  Bxd6 {[%clk 0:01:38]} 17. Qxd6 {[%clk 0:01:08]}  f6 {[%clk 0:01:34]} 18. Nc7+ {[%clk 0:00:56]}  Kf7 {[%clk 0:01:32]} 19. Nxa8 {[%clk 0:00:57]}  Qxa8 {[%clk 0:01:23]} 20. h4 {[%clk 0:00:51]}  h5 {[%clk 0:01:11]} 21. Qc7+ {[%clk 0:00:44]}  Ne7 {[%clk 0:01:09]} 22. Rd1 {[%clk 0:00:36]}  Qb7 {[%clk 0:01:10]} 23. Qg3 {[%clk 0:00:35]}  Qb6 {[%clk 0:01:03]} 24. e5 {[%clk 0:00:30]}  Rd8 {[%clk 0:01:00]} 25. Rxd8 {[%clk 0:00:26]}  Qxd8 {[%clk 0:01:01]} 26. exf6 {[%clk 0:00:24]}  gxf6 {[%clk 0:00:54]} 27. Qf3 {[%clk 0:00:25]}  Qa5 {[%clk 0:00:49]} 28. a4 {[%clk 0:00:19]}  Qe5 {[%clk 0:00:46]} 29. b3 {[%clk 0:00:17]}  Bb7 {[%clk 0:00:43]} 30. Qd3 {[%clk 0:00:12]}  Bxg2 {[%clk 0:00:36]} 31. Nb5 {[%clk 0:00:12]}  Nf5 {[%clk 0:00:29]} 32. Kb1 {[%clk 0:00:08]}  Be4 {[%clk 0:00:28]} 33. Qd7+ {[%clk 0:00:08]}  Kg6 {[%clk 0:00:28]} 34. Qe8+ {[%clk 0:00:09]}  Kg7 {[%clk 0:00:27]} 35. Qd7+ {[%clk 0:00:09]}  Kg6 {[%clk 0:00:27]} 36. Qe8+ {[%clk 0:00:09]}  Kg7 {[%clk 0:00:27]} 37. Qd7+ {[%clk 0:00:09]}  Kh6 {[%clk 0:00:27]} 38. a5 {[%clk 0:00:07]}  Qc5 {[%clk 0:00:23]} 39. Kb2 {[%clk 0:00:03]}  Qxc2+ {[%clk 0:00:22]} 40. Ka3 {[%clk 0:00:03]}  Qc5+ {[%clk 0:00:22]} 41. b4 {[%clk 0:00:02]}  Qc1+ {[%clk 0:00:20]} 42. Kb3 {[%clk 0:00:02]}  Bc2+ {[%clk 0:00:18]} 43. Kc3 {[%clk 0:00:03]}  Ba4+ {[%clk 0:00:17]} 44. Kd3 {[%clk 0:00:00]}  Qd1+ {[%clk 0:00:17]} 0-1


[Site "https://www.chess.com"]

[Event "Titled Tuesday Blitz August 15 Late 2023"]
[White "Ibarra Jerez, Jose Carlos"]
[Black "subham777"]
[WhiteFideId "2226332"]
[WhiteElo "2881"]
[BlackElo "2539"]
[Result "1-0"]
[Round "4"]
[TimeControl "180+1"]
[Date "2023.08.15"]
[WhiteClock "0:00:40"]
[BlackClock "0:00:00"]
[Board "36"]

1. e4 {[%clk 0:03:00]}  e6 {[%clk 0:03:00]} 2. d4 {[%clk 0:03:00]}  d5 {[%clk 0:03:00]} 3. Nc3 {[%clk 0:03:00]}  Nf6 {[%clk 0:02:59]} 4. Bg5 {[%clk 0:02:59]}  Be7 {[%clk 0:02:59]} 5. e5 {[%clk 0:02:59]}  Nfd7 {[%clk 0:02:59]} 6. Bxe7 {[%clk 0:02:59]}  Qxe7 {[%clk 0:02:59]} 7. Qg4 {[%clk 0:03:00]}  O-O {[%clk 0:02:59]} 8. Bd3 {[%clk 0:02:59]}  c5 {[%clk 0:02:57]} 9. Nf3 {[%clk 0:02:58]}  f5 {[%clk 0:02:54]} 10. exf6 {[%clk 0:02:58]}  Nxf6 {[%clk 0:02:54]} 11. Qh4 {[%clk 0:02:58]}  h6 {[%clk 0:02:52]} 12. Ne5 {[%clk 0:02:54]}  Qe8 {[%clk 0:02:28]} 13. dxc5 {[%clk 0:02:26]}  Nc6 {[%clk 0:02:20]} 14. Ng6 {[%clk 0:02:19]}  Rf7 {[%clk 0:02:15]} 15. Nb5 {[%clk 0:02:18]}  Qd8 {[%clk 0:02:03]} 16. O-O {[%clk 0:02:04]}  e5 {[%clk 0:01:41]} 17. Nd6 {[%clk 0:02:04]}  Rc7 {[%clk 0:01:39]} 18. c3 {[%clk 0:01:58]}  Ne7 {[%clk 0:01:29]} 19. Nxe5 {[%clk 0:01:28]}  Rxc5 {[%clk 0:01:21]} 20. Nxc8 {[%clk 0:01:26]}  Raxc8 {[%clk 0:01:15]} 21. Rfe1 {[%clk 0:01:25]}  Qd6 {[%clk 0:00:58]} 22. Rad1 {[%clk 0:01:23]}  Rf8 {[%clk 0:00:47]} 23. Qg3 {[%clk 0:01:13]}  Nh5 {[%clk 0:00:29]} 24. Qe3 {[%clk 0:01:10]}  Nf4 {[%clk 0:00:26]} 25. Bc2 {[%clk 0:01:07]}  Nc6 {[%clk 0:00:17]} 26. Nd3 {[%clk 0:00:48]}  Rc4 {[%clk 0:00:11]} 27. Bb3 {[%clk 0:00:46]}  Nxd3 {[%clk 0:00:05]} 28. Rxd3 {[%clk 0:00:43]}  Rcf4 {[%clk 0:00:01]} 29. Rxd5 {[%clk 0:00:41]}  Qb8 {[%clk 0:00:00]} 30. Rd8+ {[%clk 0:00:40]} 1-0


[Site "https://www.chess.com"]

[Event "Titled Tuesday Blitz August 15 Late 2023"]
[White "Dragomirescu, Robin-Alexandru"]
[Black "Hambleton, Aman"]
[WhiteFideId "1213849"]
[BlackFideId "2606577"]
[WhiteElo "2526"]
[BlackElo "2784"]
[Result "1/2-1/2"]
[Round "4"]
[TimeControl "180+1"]
[Date "2023.08.15"]
[WhiteClock "0:00:03"]
[BlackClock "0:00:03"]
[Board "42"]

1. b3 {[%clk 0:02:42]}  e5 {[%clk 0:03:00]} 2. Bb2 {[%clk 0:02:42]}  Nc6 {[%clk 0:03:00]} 3. e3 {[%clk 0:02:43]}  Nf6 {[%clk 0:03:01]} 4. Nf3 {[%clk 0:02:43]}  d6 {[%clk 0:02:48]} 5. d4 {[%clk 0:02:42]}  e4 {[%clk 0:02:44]} 6. Nfd2 {[%clk 0:02:42]}  d5 {[%clk 0:02:39]} 7. c4 {[%clk 0:02:42]}  Ne7 {[%clk 0:02:12]} 8. cxd5 {[%clk 0:02:37]}  Nexd5 {[%clk 0:02:13]} 9. Nc3 {[%clk 0:02:37]}  Nxc3 {[%clk 0:02:12]} 10. Bxc3 {[%clk 0:02:37]}  Bf5 {[%clk 0:02:08]} 11. Bc4 {[%clk 0:02:30]}  Bd6 {[%clk 0:02:06]} 12. d5 {[%clk 0:02:23]}  a6 {[%clk 0:01:54]} 13. a4 {[%clk 0:02:20]}  Qe7 {[%clk 0:01:54]} 14. Qc2 {[%clk 0:02:13]}  O-O {[%clk 0:01:50]} 15. h3 {[%clk 0:02:00]}  h5 {[%clk 0:00:50]} 16. Rd1 {[%clk 0:02:00]}  Rfe8 {[%clk 0:00:50]} 17. Nb1 {[%clk 0:01:52]}  Bg6 {[%clk 0:00:37]} 18. Bd4 {[%clk 0:01:51]}  Rad8 {[%clk 0:00:30]} 19. Nc3 {[%clk 0:01:51]}  h4 {[%clk 0:00:23]} 20. Ne2 {[%clk 0:01:36]}  Bb4+ {[%clk 0:00:17]} 21. Bc3 {[%clk 0:01:35]}  Bd6 {[%clk 0:00:11]} 22. Qb2 {[%clk 0:01:33]}  Nh5 {[%clk 0:00:04]} 23. b4 {[%clk 0:01:29]}  Qg5 {[%clk 0:00:03]} 24. Kf1 {[%clk 0:01:27]}  Rd7 {[%clk 0:00:03]} 25. b5 {[%clk 0:01:26]}  Ra8 {[%clk 0:00:03]} 26. bxa6 {[%clk 0:01:25]}  bxa6 {[%clk 0:00:04]} 27. Qb7 {[%clk 0:01:25]}  Rdd8 {[%clk 0:00:05]} 28. Qc6 {[%clk 0:01:19]}  a5 {[%clk 0:00:03]} 29. Nd4 {[%clk 0:01:14]}  Be5 {[%clk 0:00:01]} 30. Nb5 {[%clk 0:01:07]}  Rab8 {[%clk 0:00:02]} 31. Bxe5 {[%clk 0:01:04]}  Qxe5 {[%clk 0:00:02]} 32. Qxc7 {[%clk 0:01:05]}  Qf6 {[%clk 0:00:03]} 33. Qa7 {[%clk 0:00:40]}  Ng3+ {[%clk 0:00:03]} 34. Kg1 {[%clk 0:00:41]}  Nxh1 {[%clk 0:00:03]} 35. Kxh1 {[%clk 0:00:41]}  Qxf2 {[%clk 0:00:03]} 36. d6 {[%clk 0:00:41]}  Bf5 {[%clk 0:00:03]} 37. Qxf7+ {[%clk 0:00:39]}  Kh7 {[%clk 0:00:02]} 38. Rf1 {[%clk 0:00:38]}  Qxe3 {[%clk 0:00:02]} 39. Qxf5+ {[%clk 0:00:35]}  g6 {[%clk 0:00:02]} 40. Qf7+ {[%clk 0:00:34]}  Kh6 {[%clk 0:00:02]} 41. Qf4+ {[%clk 0:00:27]}  Qxf4 {[%clk 0:00:02]} 42. Rxf4 {[%clk 0:00:28]}  e3 {[%clk 0:00:02]} 43. Rxh4+ {[%clk 0:00:27]}  Kg5 {[%clk 0:00:03]} 44. Rg4+ {[%clk 0:00:17]}  Kf6 {[%clk 0:00:03]} 45. Kg1 {[%clk 0:00:14]}  Rbc8 {[%clk 0:00:02]} 46. Kf1 {[%clk 0:00:13]}  Rc5 {[%clk 0:00:02]} 47. Ke2 {[%clk 0:00:12]}  Re5 {[%clk 0:00:02]} 48. Rf4+ {[%clk 0:00:11]}  Kg7 {[%clk 0:00:01]} 49. Rf3 {[%clk 0:00:11]}  Rg5 {[%clk 0:00:01]} 50. g4 {[%clk 0:00:10]}  Re5 {[%clk 0:00:01]} 51. Rxe3 {[%clk 0:00:11]}  Kf6 {[%clk 0:00:01]} 52. Kd3 {[%clk 0:00:10]}  Rxe3+ {[%clk 0:00:01]} 53. Kxe3 {[%clk 0:00:10]}  Ke5 {[%clk 0:00:02]} 54. h4 {[%clk 0:00:09]}  Rh8 {[%clk 0:00:02]} 55. d7 {[%clk 0:00:09]}  Rd8 {[%clk 0:00:02]} 56. Bd3 {[%clk 0:00:10]}  g5 {[%clk 0:00:02]} 57. hxg5 {[%clk 0:00:09]}  Rxd7 {[%clk 0:00:03]} 58. g6 {[%clk 0:00:09]}  Rd8 {[%clk 0:00:03]} 59. Bf5 {[%clk 0:00:09]}  Re8 {[%clk 0:00:03]} 60. Kd3 {[%clk 0:00:09]}  Rd8+ {[%clk 0:00:02]} 61. Kc4 {[%clk 0:00:09]}  Kf6 {[%clk 0:00:02]} 62. Kc5 {[%clk 0:00:10]}  Rb8 {[%clk 0:00:02]} 63. Kc6 {[%clk 0:00:10]}  Kg7 {[%clk 0:00:02]} 64. Kc7 {[%clk 0:00:10]}  Re8 {[%clk 0:00:02]} 65. Kb6 {[%clk 0:00:10]}  Ra8 {[%clk 0:00:02]} 66. Na7 {[%clk 0:00:10]}  Kf6 {[%clk 0:00:02]} 67. Nc6 {[%clk 0:00:09]}  Re8 {[%clk 0:00:01]} 68. Nxa5 {[%clk 0:00:09]}  Re3 {[%clk 0:00:01]} 69. Nc6 {[%clk 0:00:08]}  Rb3+ {[%clk 0:00:01]} 70. Kc7 {[%clk 0:00:08]}  Rc3 {[%clk 0:00:01]} 71. a5 {[%clk 0:00:08]}  Ra3 {[%clk 0:00:02]} 72. Kb6 {[%clk 0:00:08]}  Rb3+ {[%clk 0:00:03]} 73. Ka7 {[%clk 0:00:08]}  Rc3 {[%clk 0:00:03]} 74. Kb7 {[%clk 0:00:06]}  Rb3+ {[%clk 0:00:03]} 75. Kc7 {[%clk 0:00:06]}  Ra3 {[%clk 0:00:03]} 76. Be4 {[%clk 0:00:04]}  Ra4 {[%clk 0:00:03]} 77. Bd5 {[%clk 0:00:04]}  Ra1 {[%clk 0:00:03]} 78. Be4 {[%clk 0:00:03]}  Ra4 {[%clk 0:00:03]} 79. Kb7 {[%clk 0:00:02]}  Rxe4 {[%clk 0:00:03]} 80. a6 {[%clk 0:00:02]}  Rxg4 {[%clk 0:00:02]} 81. a7 {[%clk 0:00:02]}  Ra4 {[%clk 0:00:02]} 82. Ne5 {[%clk 0:00:02]}  Rb4+ {[%clk 0:00:01]} 83. Kc8 {[%clk 0:00:02]}  Ra4 {[%clk 0:00:01]} 84. Kb8 {[%clk 0:00:03]}  Rb4+ {[%clk 0:00:02]} 85. Kc7 {[%clk 0:00:03]}  Ra4 {[%clk 0:00:02]} 86. Kb8 {[%clk 0:00:03]}  Rb4+ {[%clk 0:00:02]} 87. Kc8 {[%clk 0:00:03]}  Ra4 {[%clk 0:00:03]} 88. Nd7+ {[%clk 0:00:03]}  Kg7 {[%clk 0:00:03]} 89. Kb7 {[%clk 0:00:03]}  Rxa7+ {[%clk 0:00:02]} 90. Kxa7 {[%clk 0:00:03]}  Kxg6 {[%clk 0:00:03]} 1/2-1/2


[Site "https://www.chess.com"]

[Event "Titled Tuesday Blitz August 15 Late 2023"]
[White "Troff, Kayden"]
[Black "Kashefi, Amir Hosein"]
[WhiteFideId "2047896"]
[BlackFideId "12557935"]
[WhiteElo "2776"]
[BlackElo "2522"]
[Result "0-1"]
[Round "4"]
[TimeControl "180+1"]
[Date "2023.08.15"]
[WhiteClock "0:00:06"]
[BlackClock "0:00:18"]
[Board "46"]

1. d4 {[%clk 0:03:00]}  Nf6 {[%clk 0:02:59]} 2. Nf3 {[%clk 0:03:01]}  e6 {[%clk 0:02:58]} 3. Bf4 {[%clk 0:03:00]}  b6 {[%clk 0:02:56]} 4. e3 {[%clk 0:03:00]}  Bb7 {[%clk 0:02:57]} 5. Nbd2 {[%clk 0:02:58]}  c5 {[%clk 0:02:57]} 6. Nc4 {[%clk 0:02:57]}  Be7 {[%clk 0:02:56]} 7. Nd6+ {[%clk 0:02:32]}  Bxd6 {[%clk 0:02:55]} 8. Bxd6 {[%clk 0:02:33]}  Ne4 {[%clk 0:02:52]} 9. Bg3 {[%clk 0:02:25]}  Nc6 {[%clk 0:02:26]} 10. c3 {[%clk 0:02:21]}  O-O {[%clk 0:02:24]} 11. Bd3 {[%clk 0:01:54]}  f5 {[%clk 0:02:12]} 12. Bh4 {[%clk 0:01:35]}  Qe8 {[%clk 0:02:11]} 13. Bxe4 {[%clk 0:01:25]}  fxe4 {[%clk 0:02:10]} 14. Nd2 {[%clk 0:01:25]}  Qg6 {[%clk 0:02:09]} 15. Bg3 {[%clk 0:01:13]}  cxd4 {[%clk 0:02:09]} 16. cxd4 {[%clk 0:01:06]}  Ba6 {[%clk 0:02:07]} 17. a3 {[%clk 0:01:04]}  Bd3 {[%clk 0:02:06]} 18. Nb3 {[%clk 0:00:48]}  e5 {[%clk 0:01:44]} 19. d5 {[%clk 0:00:19]}  Ne7 {[%clk 0:01:40]} 20. Nc1 {[%clk 0:00:18]}  Bc4 {[%clk 0:01:06]} 21. d6 {[%clk 0:00:16]}  Nf5 {[%clk 0:00:58]} 22. b3 {[%clk 0:00:17]}  Ba6 {[%clk 0:00:57]} 23. Qd5+ {[%clk 0:00:14]}  Kh8 {[%clk 0:00:56]} 24. Ne2 {[%clk 0:00:08]}  Bd3 {[%clk 0:00:35]} 25. Ra2 {[%clk 0:00:06]}  Rac8 {[%clk 0:00:34]} 26. O-O {[%clk 0:00:06]}  Nxe3 {[%clk 0:00:19]} 27. fxe3 {[%clk 0:00:05]}  Rxf1+ {[%clk 0:00:19]} 28. Kxf1 {[%clk 0:00:05]}  Rc1+ {[%clk 0:00:19]} 29. Kf2 {[%clk 0:00:06]}  Qf5+ {[%clk 0:00:19]} 30. Nf4 {[%clk 0:00:06]}  Rf1# {[%clk 0:00:18]} 0-1


[Site "https://www.chess.com"]

[Event "Titled Tuesday Blitz August 15 Late 2023"]
[White "Bazeev, German"]
[Black "Berezin, Viktor"]
[WhiteFideId "24119350"]
[BlackFideId "14107872"]
[WhiteElo "2773"]
[BlackElo "2518"]
[Result "1-0"]
[Round "4"]
[TimeControl "180+1"]
[Date "2023.08.15"]
[WhiteClock "0:01:52"]
[BlackClock "0:00:00"]
[Board "47"]

1. c4 {[%clk 0:03:00]}  g6 {[%clk 0:02:53]} 2. Nc3 {[%clk 0:03:00]}  Bg7 {[%clk 0:02:51]} 3. d4 {[%clk 0:03:01]}  Nf6 {[%clk 0:02:51]} 4. Nf3 {[%clk 0:03:01]}  d6 {[%clk 0:02:51]} 5. Bg5 {[%clk 0:03:02]}  O-O {[%clk 0:02:52]} 6. e3 {[%clk 0:03:03]}  c6 {[%clk 0:02:51]} 7. Be2 {[%clk 0:03:03]}  Nbd7 {[%clk 0:02:52]} 8. O-O {[%clk 0:03:04]}  e5 {[%clk 0:02:52]} 9. Rc1 {[%clk 0:03:04]}  h6 {[%clk 0:02:50]} 10. Bh4 {[%clk 0:03:04]}  Re8 {[%clk 0:02:45]} 11. d5 {[%clk 0:03:03]}  c5 {[%clk 0:02:41]} 12. Nd2 {[%clk 0:03:04]}  Nf8 {[%clk 0:02:10]} 13. e4 {[%clk 0:03:03]}  g5 {[%clk 0:01:57]} 14. Bg3 {[%clk 0:03:02]}  Ng6 {[%clk 0:01:58]} 15. Re1 {[%clk 0:03:03]}  Nf4 {[%clk 0:01:58]} 16. Nf1 {[%clk 0:03:03]}  Nxe2+ {[%clk 0:01:36]} 17. Qxe2 {[%clk 0:03:03]}  h5 {[%clk 0:01:21]} 18. f3 {[%clk 0:02:57]}  h4 {[%clk 0:01:13]} 19. Bf2 {[%clk 0:02:57]}  Nh5 {[%clk 0:01:13]} 20. Ne3 {[%clk 0:02:54]}  Nf4 {[%clk 0:01:12]} 21. Qf1 {[%clk 0:02:55]}  Qf6 {[%clk 0:01:10]} 22. h3 {[%clk 0:02:51]}  a6 {[%clk 0:01:02]} 23. Ng4 {[%clk 0:02:51]}  Qg6 {[%clk 0:00:59]} 24. a4 {[%clk 0:02:51]}  Bd7 {[%clk 0:00:56]} 25. Ra1 {[%clk 0:02:47]}  Rab8 {[%clk 0:00:52]} 26. Ra3 {[%clk 0:02:42]}  b6 {[%clk 0:00:39]} 27. Rea1 {[%clk 0:02:16]}  Rb7 {[%clk 0:00:35]} 28. Nd1 {[%clk 0:02:13]}  Reb8 {[%clk 0:00:33]} 29. Nde3 {[%clk 0:02:07]}  Bf8 {[%clk 0:00:15]} 30. Kh2 {[%clk 0:02:06]}  Kh8 {[%clk 0:00:14]} 31. R3a2 {[%clk 0:02:04]}  Kg8 {[%clk 0:00:15]} 32. b3 {[%clk 0:02:04]}  Kh8 {[%clk 0:00:14]} 33. Rb1 {[%clk 0:01:58]}  Kg8 {[%clk 0:00:15]} 34. b4 {[%clk 0:01:57]}  Bg7 {[%clk 0:00:14]} 35. Rab2 {[%clk 0:01:54]}  Bc8 {[%clk 0:00:07]} 36. bxc5 {[%clk 0:01:51]}  bxc5 {[%clk 0:00:08]} 37. Rxb7 {[%clk 0:01:51]}  Rxb7 {[%clk 0:00:08]} 38. Rxb7 {[%clk 0:01:51]}  Bxb7 {[%clk 0:00:09]} 39. Nf5 {[%clk 0:01:52]}  Kf8 {[%clk 0:00:00]} 40. Qb1 {[%clk 0:01:52]} 1-0


[Site "https://www.chess.com"]